bitfinex/quotes_SOLUSD_20251030
["timestamp","ask_amount","ask_price","bid_price","bid_amount"]
[1761796375886,3.08938801,197.29,197.25,0.68]
[1761796376078,3.75938801,197.29,197.24,15.53869149]
[1761796376279,0.67,197.28,197.24,9.78882769]
[1761796377187,0.67,197.28,197.23,8.15953178]
[1761796377396,3.08938801,197.27,197.23,9.78882769]
[1761796377884,3.08938801,197.27,197.23,10.46882769]
[1761796378588,3.75938801,197.27,197.23,10.46882769]
[1761796380269,3.08938801,197.28,197.24,0.68]
[1761796380681,3.08938801,197.3,197.25,9.78882769]
[1761796380880,3.75938801,197.32,197.26,3.08938801]
[1761796381066,3.75938801,197.32,197.26,3.76938801]
[1761796381903,0.67,197.32,197.27,0.68]
[1761796382071,0.87,197.34,197.27,0.68]
[1761796382390,3.08938801,197.32,197.27,0.68]
[1761796382792,3.75938801,197.32,197.27,0.68]
[1761796382995,0.67,197.31,197.27,0.68]
[1761796383301,3.75938801,197.32,197.27,0.68]
[1761796383468,3.08938801,197.32,197.27,0.68]
[1761796383671,3.75938801,197.32,197.27,0.68]
[1761796383974,3.75938801,197.32,197.27,5.74918662]
[1761796385186,0.67,197.31,197.27,5.74918662]
[1761796385379,3.08938801,197.32,197.27,5.74918662]
[1761796385697,3.75938801,197.32,197.27,5.74918662]
[1761796385879,3.75938801,197.32,197.28,0.68]
[1761796387392,0.67,197.31,197.27,9.78882769]
[1761796387590,3.08938801,197.3,197.25,7.35147205]
[1761796387796,3.08938801,197.27,197.24,9.78882769]
[1761796388296,3.75938801,197.27,197.24,9.78882769]
[1761796388601,5.26747801,197.34,197.22,9.33252394]
[1761796388602,3.75938801,197.26,197.22,9.78882769]
[1761796389302,3.75938801,197.26,197.22,10.46882769]
[1761796390701,0.67,197.26,197.22,10.46882769]
[1761796391009,0.67,197.26,197.22,15.53920112]
[1761796391893,3.08938801,197.27,197.23,0.68]
[1761796392803,3.08938801,197.27,197.24,5.06996552]
[1761796392997,3.08938801,197.28,197.25,0.71]
[1761796393184,3.08938801,197.28,197.24,5.77996552]
[1761796393581,3.80938801,197.28,197.24,5.77996552]
[1761796393788,3.08938801,197.29,197.24,5.06996552]
[1761796393990,3.08938801,197.3,197.25,0.71]
[1761796394197,23.68138801,197.31,197.26,6.75152801]
[1761796394385,3.08938801,197.3,197.26,6.75152801]
[1761796394585,3.80938801,197.3,197.26,6.75152801]
[1761796394787,3.08938801,197.27,197.26,6.75152801]
[1761796395196,3.80938801,197.27,197.26,6.75152801]
[1761796395578,24.40138801,197.27,197.26,6.75152801]
[1761796396193,24.54354958,197.27,197.26,6.75152801]
[1761796396795,29.61274408,197.27,197.26,6.75152801]
[1761796400609,0.14216157,197.26,197.15,0.71]
[1761796400812,0.86216157,197.26,197.14,9.78882769]
[1761796400991,3.08938801,197.18,197.14,9.78882769]
[1761796401410,3.08938801,197.18,197.14,10.49882769]
[1761796402709,3.08938801,197.17,197.15,0.68]
[1761796403020,3.08938801,197.18,197.15,0.68]
[1761796404715,3.08938801,197.16,197.12,9.78882769]
[1761796404920,3.08938801,197.15,197.11,0.68]
[1761796405421,3.08938801,197.13,197.1,9.88882769]
[1761796405711,3.08938801,197.13,197.11,0.68]
[1761796405885,3.08938801,197.14,197.11,0.68]
[1761796408386,3.08938801,197.12,197.1,0.1]
[1761796408595,0.69,197.13,197.1,0.1]
[1761796408596,3.08938801,197.11,197.1,0.1]
[1761796409018,3.08938801,197.13,197.1,0.78]
[1761796409188,3.08938801,197.14,197.1,0.78]
[1761796409690,3.08938801,197.16,197.1,8.94284287]
[1761796410109,2.03391554,197.18,197.11,3.76938801]
[1761796410311,3.08938801,197.16,197.11,0.68]
[1761796410521,3.08938801,197.16,197.1,8.26284287]
[1761796410687,3.08938801,197.16,197.12,0.68]
[1761796412211,3.08938801,197.15,197.12,0.68]
[1761796412888,3.08938801,197.16,197.12,0.68]
[1761796413301,3.08938801,197.15,197.12,0.68]
[1761796414592,3.08938801,197.15,197.1,5.17354196]
[1761796414788,3.08938801,197.15,197.11,0.68]
[1761796415117,3.08938801,197.15,197.11,5.7532714]
[1761796415306,3.08938801,197.15,197.12,0.68]
[1761796416921,3.08938801,197.14,197.12,0.68]
[1761796418019,3.08938801,197.15,197.12,0.68]
[1761796418319,3.08938801,197.16,197.12,0.68]
[1761796419021,23.68138801,197.16,197.12,0.68]
[1761796419399,24.37138801,197.16,197.12,0.68]
[1761796419621,23.68138801,197.16,197.12,0.68]
[1761796419931,3.08938801,197.15,197.12,0.68]
[1761796426049,20.592,197.16,197.12,5.75303596]
[1761796426326,3.08938801,197.17,197.12,5.75303596]
[1761796426503,3.08938801,197.16,197.13,0.68]
[1761796428923,3.08938801,197.16,197.13,5.75277689]
[1761796429614,3.08938801,197.16,197.13,0.68]
[1761796430024,3.08938801,197.15,197.13,0.68]
[1761796430234,3.08938801,197.15,197.11,0.68]
[1761796430533,3.08938801,197.14,197.11,0.68]
[1761796430703,3.08938801,197.16,197.11,8.84266989]
[1761796431006,23.68138801,197.17,197.11,8.84266989]
[1761796431200,3.08938801,197.16,197.12,0.68]
[1761796432318,3.08938801,197.16,197.12,5.75302702]
[1761796432707,3.08938801,197.16,197.13,0.67]
[1761796433331,1.97986314,197.16,197.13,0.67]
[1761796434414,1.97986314,197.17,197.13,0.67]
[1761796434724,1.97986314,197.16,197.13,0.67]
[1761796434924,1.97986314,197.16,197.13,5.74279041]
[1761796435119,1.97986314,197.16,197.13,0.67]
[1761796435321,1.97986314,197.14,197.1,0.1]
[1761796435621,1.97986314,197.14,197.1,5.84348291]
[1761796435828,1.97986314,197.14,197.11,0.67]
[1761796436323,1.97986314,197.15,197.11,5.74324849]
[1761796436705,1.97986314,197.15,197.12,0.67]
[1761796438510,1.97986314,197.15,197.1,10.55882769]
[1761796438733,2.66986314,197.14,197.1,10.55882769]
[1761796440030,2.66986314,197.14,197.1,15.63238896]
[1761796440726,1.97986314,197.14,197.11,0.67]
[1761796440929,2.66986314,197.14,197.1,0.77]
[1761796441825,1.97986314,197.15,197.1,5.8435632]
[1761796442230,0.69,197.14,197.1,0.77]
[1761796442430,0.69,197.14,197.1,0.1]
[1761796442610,1.97986314,197.13,197.1,0.1]
[1761796443111,1.97986314,197.13,197.1,0.77]
[1761796443733,1.97986314,197.13,197.1,0.1]
[1761796444141,1.97986314,197.11,197.1,0.1]
[1761796445225,2.66986314,197.11,197.1,0.1]
[1761796446524,1.97986314,197.11,197.1,0.1]
[1761796447248,20.592,197.17,197.1,0.1]
[1761796447416,1.97986314,197.15,197.1,5.8435285]
[1761796447958,1.97986314,197.15,197.11,0.67]
[1761796448114,1.97986314,197.13,197.1,0.1]
[1761796448522,1.97986314,197.13,197.1,0.77]
[1761796449129,15.25514225,197.18,197.1,0.1]
[1761796449130,1.97986314,197.11,197.1,0.1]
[1761796449552,2.66986314,197.12,197.1,0.1]
[1761796449933,1.97986314,197.11,197.1,0.1]
[1761796450246,2.66986314,197.11,197.1,0.1]
[1761796450747,4.64972628,197.11,197.1,0.1]
[1761796450949,2.66986314,197.11,197.1,0.1]
[1761796453130,1.97986314,197.11,197.1,0.1]
[1761796454143,2.67986314,197.11,197.1,0.1]
[1761796455153,1.97986314,197.11,197.1,0.1]
[1761796455321,2.67986314,197.11,197.1,0.1]
[1761796457958,17.47667115,197.17,197.1,0.1]
[1761796458161,1.97986314,197.11,197.1,0.1]
[1761796458843,2.67986314,197.11,197.1,0.1]
[1761796459045,1.97986314,197.11,197.1,0.1]
[1761796460053,2.67986314,197.11,197.1,0.1]
[1761796464744,1.97986314,197.11,197.1,0.1]
[1761796465861,2.69986314,197.11,197.1,0.1]
[1761796466541,1.97986314,197.11,197.1,0.1]
[1761796467981,2.69986314,197.11,197.1,0.1]
[1761796468979,1.97986314,197.11,197.1,0.1]
[1761796473348,2.69986314,197.11,197.1,0.1]
[1761796473653,1.97986314,197.11,197.1,0.1]
[1761796477051,1.97986314,197.11,197.1,0.76]
[1761796477540,1.97986314,197.11,197.1,0.1]
[1761796485873,1.97986314,197.11,197.1,0.76]
[1761796486249,1.97986314,197.11,197.1,0.1]
[1761796493963,25.27172628,197.11,197.1,0.1]
[1761796495264,21.312,197.11,197.1,0.1]
[1761796495467,27.50521574,197.11,197.1,0.1]
[1761796495670,26.78521574,197.11,197.1,0.1]
[1761796496070,3.09660787,197.11,197.1,0.8]
[1761796500772,3.09660787,197.11,197.1,0.1]
[1761796502889,3.09660787,197.11,197.1,0.8]
[1761796503273,3.09660787,197.11,197.1,0.1]
[1761796503686,3.09660787,197.11,197.1,0.8]
[1761796506293,20.592,197.14,197.1,0.8]
[1761796506499,3.09660787,197.2,197.1,5.87349799]
[1761796506500,3.09660787,197.13,197.1,5.87349799]
[1761796506710,3.09660787,197.14,197.1,5.87349799]
[1761796507018,0.72,197.19,197.1,5.87349799]
[1761796507019,3.09660787,197.13,197.11,0.7]
[1761796508187,3.09660787,197.12,197.11,0.7]
[1761796508389,3.09660787,197.12,197.1,0.1]
[1761796508587,3.09660787,197.11,197.1,0.1]
[1761796509196,3.09660787,197.11,197.1,0.8]
[1761796510880,3.09660787,197.13,197.1,5.87341899]
[1761796511284,3.09660787,197.13,197.11,0.7]
[1761796512283,3.09660787,197.13,197.11,5.77318126]
[1761796512489,3.09660787,197.13,197.12,0.7]
[1761796515708,3.79660787,197.13,197.1,0.1]
[1761796515909,3.09660787,197.11,197.1,0.1]
[1761796517386,3.09660787,197.11,197.1,0.76]
[1761796519500,3.09660787,197.11,197.1,0.1]
[1761796520309,3.79660787,197.11,197.1,0.1]
[1761796520500,24.38860787,197.11,197.1,0.1]
[1761796521090,27.48521574,197.11,197.1,0.1]
[1761796521290,27.48521574,197.11,197.09,0.1]
[1761796521490,6.89321574,197.1,197.09,0.1]
[1761796521685,6.89321574,197.1,197.08,0.1]
[1761796521906,20.592,197.08,197.07,0.1]
[1761796522108,23.68860787,197.08,197.07,0.1]
[1761796522310,24.38860787,197.08,197.07,0.1]
[1761796522817,26.42366167,197.08,197.07,0.1]
[1761796526093,26.42366167,197.08,197.06,0.1]
[1761796526292,24.39860787,197.07,197.06,0.1]
[1761796526814,26.43376521,197.07,197.06,0.1]
[1761796528596,26.57592678,197.07,197.03,0.1]
[1761796528813,3.09660787,197.05,197.03,0.1]
[1761796529190,5.84197232,197.05,197.03,0.1]
[1761796531114,26.43397232,197.05,197.03,0.1]
[1761796531289,26.57613389,197.05,197.03,0.1]
[1761796531493,20.592,197.02,197.01,0.1]
[1761796531710,20.592,197.02,197.01,0.77]
[1761796531895,3.09660787,197.02,197.01,0.77]
[1761796532095,23.68860787,197.02,197.01,0.1]
[1761796532302,23.68860787,197.02,197.01,0.77]
[1761796532924,3.09660787,197.02,197.01,0.77]
[1761796533306,3.09660787,197.02,197.01,0.1]
[1761796534793,3.80660787,197.02,197.01,0.1]
[1761796535197,24.39860787,197.02,197.01,0.1]
[1761796537204,3.80660787,197.02,197.01,0.1]
[1761796537405,24.39860787,197.02,197.01,0.1]
[1761796538095,23.68860787,197.02,197.01,0.1]
[1761796540027,3.09660787,197.02,197.01,0.77]
[1761796540321,23.68860787,197.02,197.01,0.77]
[1761796540712,3.09660787,197.02,197.01,0.77]
[1761796542815,3.09660787,197.02,197.01,5.84588447]
[1761796543002,3.09660787,197.03,197.01,5.84588447]
[1761796543199,20.592,197.07,197.02,0.67]
[1761796543411,3.09660787,197.04,197.02,0.67]
[1761796543797,3.09660787,197.05,197.02,0.67]
[1761796544008,3.09660787,197.04,197.02,0.67]
[1761796544208,3.09660787,197.05,197.02,0.67]
[1761796544411,3.09660787,197.05,197.02,5.74560917]
[1761796545412,3.09660787,197.05,197.03,0.67]
[1761796546309,3.09660787,197.04,197.03,0.67]
[1761796546511,20.592,197.07,197.03,0.67]
[1761796546711,3.09660787,197.04,197.03,0.67]
[1761796548007,3.09660787,197.05,197.03,5.7453621]
[1761796548207,3.09660787,197.06,197.03,5.7453621]
[1761796548410,3.09660787,197.07,197.04,0.67]
[1761796550231,3.09660787,197.07,197.04,5.74510486]
[1761796550620,3.09660787,197.07,197.05,0.67]
[1761796551840,3.09660787,197.08,197.05,0.67]
[1761796552066,3.09660787,197.06,197.05,0.67]
[1761796552209,3.09660787,197.06,197.03,0.67]
[1761796552408,3.09660787,197.05,197.03,0.67]
[1761796553232,3.09660787,197.04,197.01,0.8]
[1761796553441,0.66,197.07,197.02,0.7]
[1761796553744,0.66,197.06,197.01,0.1]
[1761796553942,21.252,197.06,197.01,0.1]
[1761796554425,0.66,197.05,197.01,0.8]
[1761796554624,3.09660787,197.02,197.01,0.1]
[1761796555446,1.98269627,197.02,197.01,0.1]
[1761796556029,20.592,197.06,197.01,5.87588447]
[1761796556234,0.66,197.13,197.02,11.77152396]
[1761796556456,1.98269627,197.05,197.02,20.27765538]
[1761796556745,1.98269627,197.06,197.04,9.78882769]
[1761796556951,13.04096592,197.2,197.04,9.78882769]
[1761796556952,1.98269627,197.1,197.04,11.77152396]
[1761796557151,75.90104154,197.2,197.08,9.78882769]
[1761796557152,1.98269627,197.12,197.08,9.78882769]
[1761796557352,20.592,197.17,197.09,0.7]
[1761796557557,1.98269627,197.1,197.05,0.7]
[1761796557761,1.98269627,197.09,197.05,0.7]
[1761796557980,0.66,197.16,197.02,0.50756268]
[1761796557981,1.98269627,197.06,197.02,0.7]
[1761796558256,1.98269627,197.05,197.02,5.77562443]
[1761796558442,1.98269627,197.06,197.03,0.7]
[1761796559227,1.98269627,197.05,197.03,0.7]
[1761796560729,1.98269627,197.06,197.03,5.77534458]
[1761796561130,1.98269627,197.06,197.04,0.7]
[1761796562752,1.98269627,197.06,197.03,5.07536]
[1761796562951,1.98269627,197.06,197.03,5.77536]
[1761796563544,11.77152396,197.12,197.04,0.7]
[1761796563736,1.98269627,197.1,197.04,10.48882769]
[1761796564133,1.98269627,197.1,197.05,0.7]
[1761796564657,1.98269627,197.1,197.06,5.07459656]
[1761796564843,1.98269627,197.11,197.06,5.07459656]
[1761796565151,1.98269627,197.11,197.07,0.7]
[1761796565555,2.64269627,197.11,197.07,0.7]
[1761796565775,20.592,197.13,197.04,14.86374202]
[1761796566065,1.98269627,197.12,197.08,0.7]
[1761796566464,2.64269627,197.12,197.08,0.7]
[1761796566953,1.98269627,197.12,197.08,0.7]
[1761796567264,2.64269627,197.12,197.08,0.7]
[1761796567427,22.57469627,197.13,197.08,0.7]
[1761796567626,1.98269627,197.13,197.09,5.07382414]
[1761796568068,1.98269627,197.12,197.09,0.7]
[1761796570664,1.98269627,197.1,197.03,10.48882769]
[1761796570865,1.98269627,197.09,197.04,0.7]
[1761796571063,1.98269627,197.1,197.04,0.7]
[1761796571245,20.592,197.14,197.04,2.68269627]
[1761796571444,20.592,197.09,197.05,11.77152396]
[1761796571645,0.66,197.19,197.08,5.07408159]
[1761796571853,1.98269627,197.12,197.08,0.7]
[1761796573464,1.98269627,197.09,197.05,0.66]
[1761796573664,1.98269627,197.09,197.06,0.66]
[1761796573852,22.57469627,197.1,197.06,5.73459529]
[1761796574046,22.57469627,197.1,197.07,0.66]
[1761796575166,22.57469627,197.1,197.06,5.07459529]
[1761796575356,1.98269627,197.09,197.06,5.73459529]
[1761796575758,1.98269627,197.08,197.06,5.73459529]
[1761796575959,1.98269627,197.1,197.06,5.73459529]
[1761796576155,1.98269627,197.1,197.07,0.66]
[1761796576746,1.98269627,197.12,197.07,0.66]
[1761796578244,1.98269627,197.11,197.07,0.66]
[1761796578755,1.98269627,197.1,197.07,5.73429935]
[1761796578965,1.98269627,197.11,197.07,5.07429935]
[1761796579270,1.98269627,197.11,197.08,0.66]
[1761796579588,1.98269627,197.1,197.07,0.66]
[1761796579867,1.98269627,197.1,197.08,0.66]
[1761796581073,1.98269627,197.11,197.08,0.66]
[1761796583280,2.69269627,197.11,197.06,5.07452148]
[1761796583455,1.98269627,197.1,197.07,0.66]
[1761796584583,1.98269627,197.09,197.06,0.66]
[1761796585472,2.69269627,197.08,197.03,10.44882769]
[1761796585675,2.69269627,197.08,197.04,0.66]
[1761796585883,1.98269627,197.08,197.04,0.66]
[1761796586654,1.98269627,197.08,197.04,5.73498121]
[1761796586856,1.98269627,197.07,197.04,5.73498121]
[1761796587377,1.98269627,197.07,197.05,0.66]
[1761796587771,1.98269627,197.08,197.05,5.73485247]
[1761796588684,1.98269627,197.08,197.05,0.66]
[1761796589280,1.98269627,197.07,197.03,14.86397966]
[1761796589585,1.98269627,197.07,197.03,15.52397966]
[1761796589783,1.98269627,197.07,197.04,0.66]
[1761796590156,1.98269627,197.07,197.02,5.73561705]
[1761796590157,1.98269627,197.06,197.02,5.73561705]
[1761796590362,1.98269627,197.05,197.03,0.66]
[1761796591274,1.98269627,197.06,197.03,0.66]
[1761796592486,1.98269627,197.06,197.03,5.73527396]
[1761796592672,1.98269627,197.06,197.03,0.66]
[1761796593382,1.98269627,197.06,197.03,5.73536431]
[1761796593882,1.98269627,197.06,197.04,0.66]
[1761796594384,1.98269627,197.07,197.04,5.73509999]
[1761796595071,0.71,197.08,197.04,0.66]
[1761796595072,1.98269627,197.06,197.04,0.66]
[1761796595462,1.98269627,197.05,197.01,0.1]
[1761796595869,0.71,197.07,197.01,5.83582614]
[1761796596076,1.98269627,197.05,197.01,5.83582614]
[1761796596261,1.98269627,197.05,197.01,5.17582614]
[1761796596461,1.98269627,197.05,197.02,0.66]
[1761796598266,1.98269627,197.05,197.01,0.1]
[1761796598267,2.69269627,197.05,197.01,0.1]
[1761796598465,2.69269627,197.05,197.01,5.83585922]
[1761796598670,21.302,197.07,197.01,5.83585922]
[1761796598998,1.98269627,197.05,197.01,5.83585922]
[1761796599297,1.98269627,197.05,197.02,0.66]
[1761796599880,5.21473862,197.14,197.02,0.66]
[1761796599881,1.98269627,197.06,197.02,0.66]
[1761796600094,1.98269627,197.06,197.03,5.07536923]
[1761796600681,1.98269627,197.06,197.04,0.66]
[1761796603295,1.98269627,197.09,197.04,5.73497138]
[1761796603687,1.98269627,197.07,197.05,0.66]
[1761796603888,1.98269627,197.06,197.03,5.73534115]
[1761796604091,9.78882769,197.15,197.04,9.78882769]
[1761796604405,1.98269627,197.11,197.07,5.07433906]
[1761796604898,1.98269627,197.11,197.08,0.66]
[1761796605970,1.98269627,197.09,197.05,0.66]
[1761796606175,1.98269627,197.07,197.03,0.66]
[1761796606696,1.98269627,197.07,197.03,5.73517254]
[1761796607077,1.98269627,197.07,197.04,0.66]
[1761796607592,1.98269627,197.07,197.03,9.78882769]
[1761796607593,1.98269627,197.06,197.03,9.78882769]
[1761796607776,1.98269627,197.06,197.03,10.44882769]
[1761796608178,2.69269627,197.05,197.01,0.1]
[1761796608380,1.98269627,197.04,197.01,0.76]
[1761796609195,1.98269627,197.02,197.01,0.1]
[1761796609491,1.98269627,197.03,197.01,5.17588447]
[1761796609692,1.98269627,197.03,197.01,5.83588447]
[1761796609998,1.98269627,197.03,197.02,0.66]
[1761796610384,1.98269627,197.03,197.01,5.17588447]
[1761796610701,1.98269627,197.03,197.02,0.66]
[1761796610893,1.98269627,197.03,197.02,5.73562683]
[1761796611097,0.71,197.06,197.02,5.73562683]
[1761796611098,1.98269627,197.06,197.02,5.73562683]
[1761796611280,1.98269627,197.08,197.03,10.44882769]
[1761796611476,1.98269627,197.08,197.04,0.66]
[1761796613098,1.98269627,197.07,197.04,0.66]
[1761796613304,1.98269627,197.07,197.04,5.73496271]
[1761796615180,1.98269627,197.07,197.04,5.07496271]
[1761796615382,2.66269627,197.07,197.04,5.07496271]
[1761796615786,0.68,197.11,197.05,0.71]
[1761796615987,1.98269627,197.08,197.05,0.71]
[1761796616596,1.98269627,197.07,197.05,0.71]
[1761796616794,1.98269627,197.08,197.05,0.71]
[1761796617006,1.98269627,197.09,197.05,0.71]
[1761796617304,3.09543992,197.09,197.05,0.71]
[1761796617888,3.09543992,197.09,197.06,5.07459656]
[1761796618387,3.09543992,197.09,197.05,5.78482761]
[1761796619302,3.77543992,197.09,197.05,5.78482761]
[1761796619611,3.09543992,197.09,197.05,5.78482761]
[1761796619776,20.592,197.13,197.03,9.78882769]
[1761796619777,0.68,197.1,197.06,0.71]
[1761796619977,3.09543992,197.1,197.07,9.78882769]
[1761796620190,3.09543992,197.11,197.07,9.78882769]
[1761796620383,0.68,197.18,197.09,12.88426761]
[1761796620583,0.68,197.18,197.1,3.09543992]
[1761796620584,3.09543992,197.16,197.1,3.09543992]
[1761796620784,3.09543992,197.16,197.1,0.71]
[1761796620987,23.68743992,197.15,197.11,0.71]
[1761796621187,3.09543992,197.14,197.11,0.71]
[1761796621684,3.09543992,197.14,197.11,5.78330491]
[1761796622190,3.09543992,197.14,197.11,0.71]
[1761796622398,3.09543992,197.14,197.1,5.07356623]
[1761796622399,3.09543992,197.13,197.1,5.07356623]
[1761796622904,3.09543992,197.13,197.1,5.78356623]
[1761796623084,3.09543992,197.13,197.1,0.71]
[1761796623284,3.09543992,197.13,197.1,5.78356505]
[1761796623501,3.77543992,197.14,197.1,5.78356505]
[1761796623703,3.09543992,197.13,197.1,5.78356505]
[1761796625210,3.09543992,197.13,197.1,0.71]
[1761796625710,3.09543992,197.11,197.05,5.78485409]
[1761796625913,3.09543992,197.07,197.04,9.78882769]
[1761796626299,3.77543992,197.07,197.04,9.78882769]
[1761796628414,3.09543992,197.07,197.04,9.78882769]
[1761796628618,3.09543992,197.06,197.04,9.78882769]
[1761796628829,20.592,197.12,197.01,5.17575174]
[1761796628830,3.09543992,197.07,197.05,0.71]
[1761796629108,3.09543992,197.08,197.05,0.71]
[1761796630701,3.09543992,197.08,197.05,5.78467363]
[1761796630897,3.09543992,197.08,197.06,0.71]
[1761796631104,3.09543992,197.09,197.06,0.71]
[1761796632287,3.09543992,197.09,197.05,5.07467363]
[1761796632288,3.09543992,197.08,197.05,5.07467363]
[1761796632493,3.09543992,197.07,197.05,5.78467363]
[1761796632692,3.09543992,197.07,197.04,9.78882769]
[1761796632915,3.09543992,197.07,197.06,0.71]
[1761796633213,3.09543992,197.07,197.04,9.78882769]
[1761796633404,3.09543992,197.07,197.04,10.47882769]
[1761796633604,3.09543992,197.07,197.05,0.69]
[1761796634499,3.09543992,197.07,197.01,0.1]
[1761796634500,3.76543992,197.06,197.01,0.1]
[1761796634703,3.09543992,197.02,197.01,0.1]
[1761796635292,20.592,197.05,197.01,0.79]
[1761796635493,3.09543992,197.04,197.02,9.78882769]
[1761796635707,3.09543992,197.05,197.04,9.78882769]
[1761796635890,3.09543992,197.06,197.04,9.78882769]
[1761796636090,3.09543992,197.06,197.05,5.76485409]
[1761796637309,3.09543992,197.07,197.05,5.76485409]
[1761796637619,3.09543992,197.08,197.06,0.69]
[1761796638909,3.09543992,197.08,197.07,5.07433906]
[1761796639321,3.09543992,197.08,197.06,5.76457125]
[1761796639528,3.09543992,197.07,197.06,5.76457125]
[1761796639822,3.09543992,197.07,197.04,14.86376758]
[1761796640212,3.09543992,197.07,197.05,0.69]
[1761796640405,3.09543992,197.07,197.04,14.86376758]
[1761796640823,3.09543992,197.07,197.04,15.55376758]
[1761796641013,3.09543992,197.05,197.02,5.07541731]
[1761796641215,3.09543992,197.04,197.02,5.07541731]
[1761796642421,3.09543992,197.05,197.03,10.47882769]
[1761796642808,3.09543992,197.07,197.05,9.78882769]
[1761796643221,3.09543992,197.06,197.05,9.78882769]
[1761796644317,3.09543992,197.06,197.05,14.86368178]
[1761796644944,3.09543992,197.06,197.05,15.52368178]
[1761796645421,3.09543992,197.07,197.05,15.52368178]
[1761796647624,3.09543992,197.07,197.05,14.86368178]
[1761796647825,3.09543992,197.06,197.05,14.86368178]
[1761796648009,3.09543992,197.06,197.05,15.52368178]
[1761796648213,3.09543992,197.08,197.05,15.52368178]
[1761796648413,3.09543992,197.08,197.06,0.66]
[1761796648926,3.09543992,197.08,197.05,14.86368178]
[1761796649124,3.09543992,197.12,197.05,14.86368178]
[1761796649125,3.09543992,197.07,197.05,14.86368178]
[1761796650039,0.66,197.1,197.05,15.52368178]
[1761796650224,3.09543992,197.07,197.05,15.52368178]
[1761796652706,14.86368178,197.12,197.06,0.66]
[1761796652707,3.09543992,197.08,197.06,0.66]
[1761796652906,0.66,197.11,197.07,5.07433906]
[1761796653213,14.86368178,197.12,197.05,14.86350761]
[1761796653414,0.66,197.11,197.05,14.86350761]
[1761796653826,0.66,197.11,197.05,15.52350761]
[1761796654138,3.09543992,197.07,197.05,15.52350761]
[1761796655322,3.09543992,197.07,197.05,14.86350761]
[1761796655640,3.75543992,197.06,197.04,9.78882769]
[1761796655819,3.09543992,197.05,197.04,9.78882769]
[1761796656817,3.09543992,197.05,197.04,14.86393934]
[1761796657622,3.09543992,197.06,197.04,15.52393934]
[1761796658534,3.09543992,197.06,197.04,14.86393934]
[1761796659861,21.252,197.14,197.06,9.78882769]
[1761796660016,3.09543992,197.12,197.06,9.78882769]
[1761796660216,3.09543992,197.12,197.08,9.78882769]
[1761796660517,3.09543992,197.11,197.09,5.07382414]
[1761796662220,3.09543992,197.1,197.09,5.07382414]
[1761796662418,3.09543992,197.1,197.09,14.86265183]
[1761796663141,3.09543992,197.11,197.09,5.07382414]
[1761796664136,3.09543992,197.11,197.09,5.73382414]
[1761796664330,3.09543992,197.11,197.08,14.86289115]
[1761796665045,3.09543992,197.11,197.08,15.52289115]
[1761796665425,3.09543992,197.15,197.09,43.9294154]
[1761796665624,0.2,197.27,197.22,9.93098926]
[1761796665817,0.2,197.27,197.26,9.78882769]
[1761796666030,0.2,197.27,197.26,13.53337432]
[1761796666328,0.2,197.27,197.26,14.19337432]
[1761796667533,0.2,197.27,197.26,15.66044074]
[1761796667919,0.2,197.27,197.26,18.75588066]
[1761796669665,0.2,197.27,197.24,9.78882769]
[1761796669944,0.2,197.27,197.26,0.66]
[1761796670122,0.2,197.27,197.26,10.44882769]
[1761796670445,0.2,197.27,197.26,10.59098926]
[1761796671125,0.2,197.27,197.26,10.44882769]
[1761796671339,0.2,197.27,197.26,15.51827917]
[1761796671648,0.2,197.27,197.26,14.85827917]
[1761796672449,0.2,197.27,197.26,9.78882769]
[1761796672450,0.91,197.27,197.26,9.78882769]
[1761796672628,0.2,197.27,197.26,9.78882769]
[1761796673032,0.2,197.27,197.22,0.50704796]
[1761796673240,3.09543992,197.26,197.22,30.52298926]
[1761796673433,4.00543992,197.27,197.22,30.52298926]
[1761796673750,0.71,197.26,197.22,35.59323125]
[1761796675236,0.2,197.27,197.24,9.78882769]
[1761796675647,0.71,197.26,197.24,9.78882769]
[1761796676041,0.2,197.27,197.24,9.78882769]